Cogmind - Beta 13 @@@ ROGUE MODE // 2024.04.08 @ 09:25:51 Player: Hazel Olivia Result: Self-destructed Performance ------------- Evolutions (1) 500 Regions Visited (3) 600 Robots Destroyed (37) 185 Value Destroyed (485) 485 Prototype IDs (1) 20 Alien Tech Used (0) 0 Bonus (199) 199 TOTAL SCORE: 1989 Bonus ------- Follower Combat Kills 199 Cogmind --------- Core Integrity 386/400 Matter 294/300 Energy 206/250 System Corruption 3% Temperature Cool (0) Movement Treading (240) Ox1 Location -9/Materials Parts ------- > --- POWER (1) -------- Ion Engine > --- PROPULSION (3) --- Light Treads Light Treads Light Treads > --- UTILITY (3) ------ Huge Storage Unit Structural Scanner Hacking Suite > --- WEAPON (2) ------- Assault Rifle Assault Rifle > --- INVENTORY (25) --- Ion Engine Ion Engine Ion Engine Ion Engine Light Treads Light Treads Light Treads Improved Flight Unit Improved Flight Unit Improved Flight Unit Cesium-ion Thruster Cesium-ion Thruster Cesium-ion Thruster Improved Heat Sink Medium Storage Unit Medium Matter Pod (100) Structural Scanner Transport Network Coupler ECM Suite Tractor Beam Assault Rifle Heavy Assault Rifle Light Cannon Mining Laser Mining Claw Peak State ------------ > --- POWER ------------ Ion Engine > --- PROPULSION ------- Light Treads Light Treads Improved Flight Unit > --- UTILITY ---------- Huge Storage Unit Structural Scanner Hacking Suite > --- WEAPON ----------- Assault Rifle Assault Rifle > --- INVENTORY -------- Ion Engine Ion Engine Ion Engine Ion Engine Light Treads Light Treads Light Treads Light Treads Light Treads Cesium-ion Thruster Cesium-ion Thruster Cesium-ion Thruster Cesium-ion Thruster Improved Heat Sink Medium Storage Unit Medium Matter Pod Structural Scanner Transport Network Coupler ECM Suite Tractor Beam Assault Rifle Heavy Assault Rifle Light Cannon Mining Laser Mining Claw [Rating: 16] Favorites ----------- Power Ion Engine Engine Ion Engine Propulsion Light Treads Treads Light Treads Flight Unit Improved Flight Unit Utility Sensor Array Device Sensor Array Storage Huge Storage Unit Hackware Hacking Suite Weapon Assault Rifle Ballistic Gun Assault Rifle Build | -11 -10 -10 -9 ------- Run | Yrd Mat Min Mat Slots Evolved 2 | . . . 2 Power . | . . . . Propulsion 1 | . . . 1 Utility 1 | . . . 1 Weapon . | . . . . Parts Attached 20 | 6 6 . 8 Power 1 | 1 . . . Engine 1 | 1 . . . Core . | . . . . Reactor . | . . . . Propulsion 8 | 2 2 . 4 Treads 7 | 2 2 . 3 Leg . | . . . . Wheel . | . . . . Hover . | . . . . Flight 1 | . . . 1 Utility 7 | 1 4 . 2 Device 2 | . 1 . 1 Storage 4 | 1 3 . . Processor . | . . . . Hackware 1 | . . . 1 Protection . | . . . . Artifact . | . . . . Weapon 4 | 2 . . 2 Energy Gun . | . . . . Energy Cannon . | . . . . Ballistic Gun 4 | 2 . . 2 Ballistic Cannon . | . . . . Launcher . | . . . . Special Weapon . | . . . . Impact Weapon . | . . . . Slashing Weapon . | . . . . Piercing Weapon . | . . . . Special Melee Weapon . | . . . . Unidentified Prototypes 1 | . . . 1 Parts Lost 1 | . . . 1 Power . | . . . . Propulsion . | . . . . Utility 1 | . . . 1 Weapon . | . . . . Highest Loss Streak 1 | . . . 1 To Critical Strikes . | . . . . Average Slot Usage (%) 99 | . 99 100 99 Engine 13 | . 14 14 11 Treads 28 | . 27 28 32 Device 13 | . 13 14 15 Storage 13 | . 14 14 11 Ballistic Gun 27 | . 28 28 22 Naked Turns . | . . . . Heaviest Build 91 | 14 90 90 91 Greatest Support 60 | 40 40 40 60 Greatest Overweight (x) 4 | 4 2 2 1 Average Overweight (x) 1 | . 1 2 1 Largest Inventory Capacity 25 | 8 25 25 25 Average Capacity 22 | 7 20 25 25 Most Carried 25 | 1 22 23 25 Average Carried 18 | . 14 22 22 Final Capacity 25 | 8 25 25 25 Final Carried 25 | 1 22 23 25 Class Distribution -------------------- 100% | Mutant Dominant Class ---------------- Mutant | -10/Materials Mutant | -10/Mines Mutant | -9/Materials Resources | -11 -10 -10 -9 ----------- Run | Yrd Mat Min Mat Matter Collected 1226 | 129 692 147 258 Remotely . | . . . . Salvage Created 1016 | . 650 151 215 Parts 76 | . 56 7 13 Haulers Intercepted 3 | . 2 . 1 Recyclers Shooed 4 | . 3 1 . Parts Field Recycled . | . . . . Retrieved Matter . | . . . . Parts Self-Destructed . | . . . . Prevented . | . . . . Kills | -11 -10 -10 -9 ------- Run | Yrd Mat Min Mat Combat Hostiles Destroyed 21 | . 11 5 5 Guns 21 | . 11 5 5 Classes Destroyed 9 | . 8 . 1 Worker 5 | . 5 . . Builder 2 | . 2 . . Hauler 3 | . 2 . 1 Recycler 2 | . 2 . . Operator 1 | . 1 . . Watcher 3 | . 2 . 1 Swarmer 15 | . 9 3 3 Grunt 5 | . 2 2 1 Sentry 1 | . . . 1 Best Kill Streak 5 | . 5 3 2 Combat Bots Only 3 | . 3 3 2 Max Kills in Single Turn 2 | . 1 1 2 Gunslinging 1 | . . . 1 Exploded . | . . . . Melee . | . . . . Uniques/NPCs Destroyed . | . . . . Combat | -11 -10 -10 -9 -------- Run | Yrd Mat Min Mat Hostile Shots Fired 92 | . 38 30 24 Missed 30 | . 15 8 7 Damage Taken 651 | . 204 233 214 Core 91 | . 27 50 14 Absorbed by Shields . | . . . . Regen/Repaired (Parts) 105 | . 105 . . Core Remaining (%) 84 | 100 . 69 . Volleys Fired 122 | . 81 14 27 Largest 2 | . 2 2 2 Hottest 40 | . 40 40 40 Shots Fired 244 | . 162 28 54 Gun 244 | . 162 28 54 Cannon . | . . . . Launcher . | . . . . Special . | . . . . Kinetic 244 | . 162 28 54 Thermal . | . . . . Explosive . | . . . . Electromagnetic . | . . . . Robot Hit Streak 8 | . 6 5 8 Robot Miss Streak 6 | . 6 2 3 Penetration Max . | . . . . Secondary Targets 5 | . 1 3 1 Max Gunslinging Chain 1 | . 1 1 1 Shots Hit Robots 143 | . 88 21 34 Core Hits 56 | . 36 10 10 Critical Kills 1 | . . 1 . Critical Parts Destroyed . | . . . . Critical Strikes 1 | . . 1 . Destroy 1 | . . 1 . Melee Attacks . | . . . . Impact . | . . . . Slashing . | . . . . Piercing . | . . . . Sneak Attacks . | . . . . Combat Hostiles . | . . . . Follow-up Attacks . | . . . . Damage Inflicted 1858 | . 1179 266 413 Guns 1858 | . 1179 266 413 Cannons . | . . . . Explosions . | . . . . Melee . | . . . . Ramming . | . . . . Kinetic 1858 | . 1179 266 413 Thermal . | . . . . Explosive . | . . . . Electromagnetic . | . . . . Impact . | . . . . Slashing . | . . . . Piercing . | . . . . Highest Corruption 3 | . . . 3 Average Corruption 2 | . . . 2 Corruption Purged . | . . . . Corruption Blocked . | . . . . Effects 11 | . . . 11 Message Errors 3 | . . . 3 Matter Fused 4 | . . . 4 Energy Discharges 2 | . . . 2 Misfires 1 | . . . 1 Weapon Failures 1 | . . . 1 Overload Shots . | . . . . Overflow Damage . | . . . . Projectiles . | . . . . Explosions . | . . . . Melee . | . . . . Knockbacks . | . . . . Impact . | . . . . Kinetic . | . . . . Secondary . | . . . . Self-Inflicted Damage . | . . . . Shots . | . . . . Rammed . | . . . . Targets Rammed . | . . . . Kicked . | . . . . Crushed . | . . . . Highest Temperature 2 | . . 2 . Average Temperature 2 | . . 2 . Received Heat Transfer 180 | . 24 66 90 Siege Activations . | . . . . Robots Corrupted . | . . . . Combat Hostiles . | . . . . Parts Fried . | . . . . Impact Corruptions . | . . . . Robots Melted . | . . . . Combat Hostiles . | . . . . Parts Melted . | . . . . Heat Transferred . | . . . . Parts Sabotaged . | . . . . Parts Stolen . | . . . . Parts Stripped . | . . . . Power Chain Reactions . | . . . . Alert | -11 -10 -10 -9 ------- Run | Yrd Mat Min Mat Peak Influence 303 | . 303 143 211 Initial 10 | . . 10 . Average 65 | . 83 25 93 Maximum Alert Level 1 | . 1 . 1 Low Security (%) 91 | 100 86 100 90 Level 1 8 | . 13 . 9 Level 2 . | . . . . Level 3 . | . . . . Level 4 . | . . . . Level 5 . | . . . . High Security . | . . . . Max Security . | . . . . Squads Dispatched 3 | . 1 . 2 Investigation 1 | . . . 1 Extermination . | . . . . Reinforcement 2 | . 1 . 1 Assault . | . . . . Garrison . | . . . . Intercept . | . . . . Searches Triggered . | . . . . Construction Impeded . | . . . . Haulers Reinforced . | . . . . Active Scanning Responses . | . . . . Cargo Convoy Interrupts . | . . . . Stealth | -11 -10 -10 -9 --------- Run | Yrd Mat Min Mat Distress Signals 5 | . 2 . 3 Communications Jammed . | . . . . Distress Signals . | . . . . Times Spotted 68 | . 40 8 20 Peak Tracking Total 8 | . 5 3 8 Tactical Retreats 2 | . 1 1 . Traps | -11 -10 -10 -9 ------- Run | Yrd Mat Min Mat Traps Triggered 2 | . . . 2 Indirectly . | . . . . Trap Hack Attempts . | . . . . Triggered . | . . . . Disarmed 6 | . 6 . . Reprogrammed . | . . . . Reused . | . . . . Traps Extracted . | . . . . Installed . | . . . . Triggered . | . . . . Machines | -11 -10 -10 -9 ---------- Run | Yrd Mat Min Mat Machines Disabled 1 | . 1 . . Max in Single Turn 1 | . 1 . . Machines Repaired . | . . . . Machines Dismantled . | . . . . Machines Sabotaged . | . . . . Overloaded Fab Kills . | . . . . Hacking | -11 -10 -10 -9 --------- Run | Yrd Mat Min Mat Machines Accessed 7 | . 6 . 1 Terminals 4 | . 3 . 1 Fabricators . | . . . . Repair Stations 1 | . 1 . . Recycling Units 2 | . 2 . . Scanalyzers . | . . . . Garrison Access . | . . . . Total Hacks 20 | . 17 . 3 Successful 15 | . 15 . . Failed 5 | . 2 . 3 Catastrophic 1 | . . . 1 Database Lockouts . | . . . . Manual 9 | . 6 . 3 Terminals 11 | . 8 . 3 Fabricators . | . . . . Repair Stations 7 | . 7 . . Recycling Units 2 | . 2 . . Scanalyzers . | . . . . Garrison Access . | . . . . Terminal Hacks 6 | . 6 . . Part Schematic 1 | . 1 . . Branch Access Points 1 | . 1 . . Disarm Traps 1 | . 1 . . Dispatch Records 1 | . 1 . . Hauler Manifests 1 | . 1 . . Registered Components 1 | . 1 . . Fabricator Hacks . | . . . . Repair Station Hacks 7 | . 7 . . Scan Component 4 | . 4 . . Repair 3 | . 3 . . Recycling Unit Hacks 2 | . 2 . . Report Inventory 2 | . 2 . . Scanalyzer . | . . . . Garrison Access Hacks . | . . . . Unauthorized Hacks . | . . . . Terminals . | . . . . Fabricators . | . . . . Repair Stations . | . . . . Recycling Units . | . . . . Scanalyzers . | . . . . Garrison Access . | . . . . Data Cores Recovered . | . . . . Used . | . . . . Hacking Detections 4 | . 3 . 1 Full Trace Events 1 | . . . 1 Feedback Events . | . . . . Feedback Blocked . | . . . . Robot Schematics Acquired . | . . . . Robots Built . | . . . . Authchips . | . . . . Time . | . . . . Total Robot Build Rating . | . . . . Part Schematics Acquired 1 | . 1 . . Parts Built . | . . . . Authchips . | . . . . Time . | . . . . Total Part Build Rating . | . . . . Parts Repaired 3 | . 3 . . Time 78 | . 78 . . Parts Recycled . | . . . . Recycled Matter . | . . . . Retrieved Matter . | . . . . Retrieved Components . | . . . . Parts Scanalyzed . | . . . . Part Schematics Acquired . | . . . . Parts Damaged . | . . . . Bothacking | -11 -10 -10 -9 ------------ Run | Yrd Mat Min Mat Used RIF Installer . | . . . . Robots Hacked . | . . . . Non-combat . | . . . . Combat . | . . . . Robot Hacks Applied . | . . . . Relay Couplers Released . | . . . . Fabnet Peak Effective % . | . . . . Robots Rewired . | . . . . Allies Hacked . | . . . . Hacks Repelled . | . . . . Allies | -11 -10 -10 -9 -------- Run | Yrd Mat Min Mat Total Allies 5 | . . 5 . Largest Group 3 | . . 3 3 Highest-Rated Group 55 | . . 55 55 Highest-Rated Ally 31 | . . 31 31 Total Orders . | . . . . Ally Attacks 26 | . . 8 18 Total Damage 384 | . . 115 269 Kills 10 | . . 3 7 Allies Corrupted . | . . . . Allies Melted . | . . . . Intel | -11 -10 -10 -9 ------- Run | Yrd Mat Min Mat Robot Analysis Total . | . . . . Derelict Logs Recovered 1 | . . 1 . Drone Launches . | . . . . Drone Recoveries . | . . . . Exploration | -11 -10 -10 -9 ------------- Run | Yrd Mat Min Mat Turns Passed 5738 | 59 3138 1779 762 Spaces Moved 1919 | 30 1082 534 273 Core 9 | 9 . . . Treads 1910 | 21 1082 534 273 Legs . | . . . . Wheels . | . . . . Hover . | . . . . Flight . | . . . . Fastest Speed 50 | 50 160 320 240 Average Speed 269 | 157 255 320 240 Slowest Speed 320 | 250 320 320 240 Overloaded Moves . | . . . . Propulsion Burnouts . | . . . . Robots Hopped . | . . . . Cave-ins Triggered . | . . . . Exploration Rate (%) 56 | 4 99 99 23 Regions Visited 3 Branch Regions 1 Pre-discovered Areas 1 | . . 1 . Known Exits Taken 1 | . 1 . . Unknown Exits Taken 2 | 1 . 1 . Scrap Searched 3 | . . 3 . Spaces Dug . | . . . . Terrain Destroyed . | . . . . Melee . | . . . . Projectile . | . . . . AOE . | . . . . Terrain Rammed . | . . . . Walls Destroyed . | . . . . Machines Disabled . | . . . . Actions | -11 -10 -10 -9 --------- Run | Yrd Mat Min Mat Total 2246 | 39 1299 578 330 Wait 134 | 3 102 28 1 Move 1916 | 29 1081 533 273 Hop . | . . . . Pick Up 40 | 1 24 2 13 Fast Attach 10 | 6 4 . . Attach 4 | . . . 4 Detach 1 | . 1 . . Swap 6 | . 2 . 4 Drop 13 | . 4 1 8 Fire 122 | . 81 14 27 Melee . | . . . . Ram . | . . . . Kick . | . . . . Crush . | . . . . Escape Stasis . | . . . . Rewire . | . . . . Trap . | . . . . Miscellaneous . | . . . . Route ------- -11/Scrapyard -10/Materials (discovered 5 exits: *Mat x3 / *Min / [*Sub]) -10/Mines (discovered 2 exits: *Mat x2) -9/Materials (discovered 1 exit: Mat) History --------- Turn | Location | Event 28 | -11/Scrapyard | Discovered new exit (range 15) 60 | -11/Scrapyard | Entered Materials 311 | -10/Materials | Build established: Mutant 377 | -10/Materials | Discovered new exit (range 15) 561 | -10/Materials | Discovered new exit (range 15) 805 | -10/Materials | Discovered new exit (range 13) 1130 | -10/Materials | Identified exit to Mines 1285 | -10/Materials | Repaired Ion Engine 1312 | -10/Materials | Repaired Lgt. Treads 1339 | -10/Materials | Repaired Lgt. Treads 1551 | -10/Materials | Discovered new exit (range 10) 2406 | -10/Materials | Discovered new exit (range 11) 3198 | -10/Materials | Entered Mines 3199 | -10/Mines | Learned location of Storage (-7) 3744 | -10/Mines | Learned location of 1 exit from Materials 3801 | -10/Mines | Assisted by bots powering up and referring to "LRC-V3" 4003 | -10/Mines | Discovered new exit (range 5) 4335 | -10/Mines | Discovered new exit (range 5) 4977 | -10/Mines | Entered Materials 4977 | -9/Materials | Accompanied by 3 allies 4977 | -9/Materials | Evolved 2 slots: Propulsion x1, Utility x1 4978 | -9/Materials | Identified exit to Materials 4982 | -9/Materials | Led the pair of lost Derelicts to an unsafe place 5739 | -9/Materials | Self-destructed Last Messages --------------- 05661_ K-01 Serf collects debris. 05661_ R-06 Scavenger collects Sensor Array. 05661_ Dropped Cesium-ion Thruster. 05661_ Acquired Imp. Flight Unit. 05665_ Acquired Cesium-ion Thruster. 05665_ K-01 Serf collects debris. 05667_ R-06 Scavenger collects Ion Engine. 05669_ K-01 Serf collects debris. 05671_ Dropped Cesium-ion Thruster. 05671_ Acquired Imp. Flight Unit. 05671_ R-06 Scavenger collects Transport Network Coupler. 05671_ Acquired 41 matter. 05674_ R-06 Scavenger collects Cesium-ion Thruster. 05676_ Dropped Cesium-ion Thruster. 05676_ Acquired Imp. Flight Unit. 05679_ Dropped Lgt. Treads. 05680_ Acquired Cesium-ion Thruster. 05734_ System corrupted: Energy discharge (-77). Map ----- +----------------------------------------------------+ | ?????????????????????????????????????????????????? | | ?????????????????????????????????????????????????? | | ?????????????????????????????????????????????????? | | ?????????????????????????????????????????????????? | | ?????????????????????????????????????????????????? | | ?????????????????????????????????????????????????? | | ?????????????????????????????????????????????????? | | ?????????????????????????????????????????????????? | | ?????????????????????????????????????????????????? | | ?????????????????????????????????????????????????? | | ?????????????????????????????????????????????????? | | ?????????????????????????????????????????????????? | | ?????????????????????????????????????????????????? | | ?????????????????????????????????????????????????? | | ?????????????????????????????????????????????????? | | ?????????????????????????????????????????????????? | | ?????????????????????????????????????????????????? | | ?????????????????????????????????????????????????? | | ?????????????????????????????????????????????????? | | ????????"" ########??????????????????????????????? | | ????????###########??????????????????????????????? | | ????????## ############ #########??????????? | | ????????## #####################Y ?????????? | | ????????## u ????????? | | ????????## Y????????? | | ????????## k @ k ????????? | | ????????## ##################??????????????? | | #######?## ##################??????????????? | | #######?### ###??????????????????????????????? | | ]** =##?### ###??????????????????????????????? | | ]** *##??## ##???????????????????????????????? | | ##??## ##???????????????????????????????? | | ######## ##???????????????????????????????? | | ######## ##???????????????????????????????? | | ##???????????????????????????????? | | = ##???????????????????????????????? | | %= ##???????????????????????????????? | | ## ### ### ##???????????????????????????????? | | ## ## ### ###??????????????????????????????? | | ## ## ## ##??????????????????????????????? | | ## ## ## ??????????????????????????????? | | ####### ##? ????????????????????????????? | | ####### ##? ??????????????????????????? | | ##???## ##? ##### ??????????????????????????? | | ##???## ##?######### ?????????????????????????? | | ##???## ##?######????? ????????????????????????? | | ##???## ##?????????????????????????????????????? | | ####### ##?????????????????????????????????????? | | ####### ##?????????????????????????????????????? | | ##?????????????????????????????????????? | +----------------------------------------------------+ Best States ------------- Heat Dissipation 28 Energy Generation 10 Energy Capacity 250 Matter Stores 300 Matter Capacity 300 Sight Range 16 Robot Scan Range 14 Terrain Scan Density 10 Evasion (%) 40 Recoil Reduction 3 Offensive Hacking 10 Item Schematics ----------------- Flight Unit | -10/Materials | Hacked Robot Schematics ------------------ None Fabricated ------------ Nothing Alien Tech Used ----------------- None Achievements -------------- None Challenges ------------ None Game ------ Seed BlastUltimateAutogun Manual? 0 Play Time 00:48:28 Cumulative 11.2 hours Start 2024.04.07 @ 17:58:59 End 2024.04.08 @ 09:25:51 Sessions 3 Manual Loads 0 Difficulty Rogue Special Mode None Game No. 10 Rogue 4 Adventurer 6 Explorer 0 Win Type - Total 0 Types 0/0/0/0/0/0/0/0/0 Lore% 6 Gallery% 12 Achievement% 11 Wizard Run 0 Options --------- Layout 1 ASCII 0 Keyboard 0 Movement Mouse Keybinds 0 Fullscreen 1 Font 24/Smallcaps Map View 50x35 Zoom Use 0% Tactical HUD 1 Map Filters NONE Filters NONE Steam 1 RUN: e68227b7-b9dc-4f4a-bb73-320e1fbb5d28